[Event "Titled Tuesday Blitz November 08 Late 2022"]
[White "Do Nascimento,Christian Almeida"]
[Black "Arnold, Ken"]
[WhiteFideId "2143801"]
[BlackFideId "2056836"]
[WhiteElo "2079"]
[BlackElo "2316"]
[Result "1-0"]
[Round "04"]
[TimeControl "180+1"]
[Date "2022.11.09"]
[WhiteClock "0:00:11"]
[BlackClock "0:00:16"]

1. e4 {[%clk 0:02:55]}  c6 {[%clk 0:03:00]} 2. d4 {[%clk 0:02:54]}  d5 {[%clk 0:03:00]} 3. exd5 {[%clk 0:02:55]}  cxd5 {[%clk 0:03:01]} 4. c4 {[%clk 0:02:55]}  Nf6 {[%clk 0:03:02]} 5. Nf3 {[%clk 0:02:55]}  Nc6 {[%clk 0:03:02]} 6. Nc3 {[%clk 0:02:55]}  e6 {[%clk 0:03:02]} 7. c5 {[%clk 0:02:55]}  Bd7 {[%clk 0:03:01]} 8. Bd3 {[%clk 0:02:55]}  Be7 {[%clk 0:03:01]} 9. O-O {[%clk 0:02:53]}  O-O {[%clk 0:03:01]} 10. a3 {[%clk 0:02:52]}  b6 {[%clk 0:02:40]} 11. b4 {[%clk 0:02:50]}  bxc5 {[%clk 0:02:40]} 12. dxc5 {[%clk 0:02:39]}  a6 {[%clk 0:02:23]} 13. Bf4 {[%clk 0:02:35]}  d4 {[%clk 0:02:17]} 14. Ne2 {[%clk 0:02:30]}  Nd5 {[%clk 0:02:14]} 15. Bg3 {[%clk 0:02:21]}  Bf6 {[%clk 0:02:13]} 16. Rc1 {[%clk 0:02:09]}  Qc8 {[%clk 0:02:06]} 17. Nexd4 {[%clk 0:01:53]}  Nxd4 {[%clk 0:02:00]} 18. Nxd4 {[%clk 0:01:48]}  g6 {[%clk 0:01:50]} 19. Nf3 {[%clk 0:01:35]}  Bb5 {[%clk 0:01:44]} 20. Bd6 {[%clk 0:01:17]}  Rd8 {[%clk 0:01:41]} 21. Qe2 {[%clk 0:01:09]}  Nf4 {[%clk 0:01:32]} 22. Bxf4 {[%clk 0:00:51]}  Bxd3 {[%clk 0:01:32]} 23. Qe3 {[%clk 0:00:50]}  Bxf1 {[%clk 0:01:32]} 24. Rxf1 {[%clk 0:00:51]}  Qc6 {[%clk 0:01:27]} 25. Be5 {[%clk 0:00:50]}  Be7 {[%clk 0:01:18]} 26. Qh6 {[%clk 0:00:47]}  Bf8 {[%clk 0:01:06]} 27. Qf4 {[%clk 0:00:34]}  Bg7 {[%clk 0:00:56]} 28. Bxg7 {[%clk 0:00:31]}  Kxg7 {[%clk 0:00:55]} 29. Ne5 {[%clk 0:00:32]}  Qe8 {[%clk 0:00:49]} 30. Ng4 {[%clk 0:00:31]}  Qe7 {[%clk 0:00:41]} 31. Qh6+ {[%clk 0:00:18]}  Kg8 {[%clk 0:00:41]} 32. h4 {[%clk 0:00:18]}  Rd4 {[%clk 0:00:40]} 33. f3 {[%clk 0:00:16]}  Rad8 {[%clk 0:00:33]} 34. h5 {[%clk 0:00:15]}  Rd1 {[%clk 0:00:31]} 35. Rxd1 {[%clk 0:00:14]}  Rxd1+ {[%clk 0:00:30]} 36. Kf2 {[%clk 0:00:13]}  Rd5 {[%clk 0:00:28]} 37. Qf4 {[%clk 0:00:12]}  Rf5 {[%clk 0:00:27]} 38. Qb8+ {[%clk 0:00:11]}  Qf8 {[%clk 0:00:22]} 39. Qb7 {[%clk 0:00:09]}  Rxh5 {[%clk 0:00:19]} 40. Nf6+ {[%clk 0:00:10]}  Kg7 {[%clk 0:00:20]} 41. Nxh5+ {[%clk 0:00:10]}  gxh5 {[%clk 0:00:20]} 42. c6 {[%clk 0:00:11]}  Qd8 {[%clk 0:00:20]} 43. Qd7 {[%clk 0:00:09]}  Qb6+ {[%clk 0:00:19]} 44. Ke2 {[%clk 0:00:09]}  Qb5+ {[%clk 0:00:19]} 45. Ke3 {[%clk 0:00:10]}  Qe5+ {[%clk 0:00:19]} 46. Kd3 {[%clk 0:00:10]}  Qf5+ {[%clk 0:00:19]} 47. Kc3 {[%clk 0:00:10]}  Qe5+ {[%clk 0:00:18]} 48. Qd4 {[%clk 0:00:11]}  Qxd4+ {[%clk 0:00:16]} 49. Kxd4 {[%clk 0:00:11]} 1-0


[Site "https://www.chess.com"]

[Event "Titled Tuesday Blitz November 08 Late 2022"]
[White "Dubov, Daniil"]
[Black "Kobo, Ori"]
[WhiteFideId "24126055"]
[BlackFideId "2812320"]
[WhiteElo "2791"]
[BlackElo "2447"]
[Result "1/2-1/2"]
[Round "04"]
[TimeControl "180+1"]
[Date "2022.11.08"]
[WhiteClock "0:00:36"]
[BlackClock "0:00:09"]

1. e4 {[%clk 0:03:00]}  g6 {[%clk 0:02:57]} 2. d4 {[%clk 0:03:00]}  Bg7 {[%clk 0:02:57]} 3. Nc3 {[%clk 0:03:01]}  d6 {[%clk 0:02:58]} 4. f4 {[%clk 0:03:01]}  Nf6 {[%clk 0:02:58]} 5. Nf3 {[%clk 0:03:02]}  O-O {[%clk 0:02:58]} 6. Bd3 {[%clk 0:03:02]}  Nc6 {[%clk 0:02:58]} 7. e5 {[%clk 0:02:59]}  dxe5 {[%clk 0:02:59]} 8. fxe5 {[%clk 0:02:56]}  Nh5 {[%clk 0:02:58]} 9. Be3 {[%clk 0:02:54]}  Bg4 {[%clk 0:02:57]} 10. Be2 {[%clk 0:02:51]}  f6 {[%clk 0:02:57]} 11. h3 {[%clk 0:02:44]}  Bxf3 {[%clk 0:02:51]} 12. Bxf3 {[%clk 0:02:45]}  fxe5 {[%clk 0:02:51]} 13. d5 {[%clk 0:02:45]}  Nd4 {[%clk 0:02:50]} 14. O-O {[%clk 0:02:45]}  Ng3 {[%clk 0:02:35]} 15. Rf2 {[%clk 0:02:43]}  Ngf5 {[%clk 0:02:34]} 16. Bg5 {[%clk 0:02:37]}  Bf6 {[%clk 0:02:29]} 17. Ne4 {[%clk 0:02:29]}  Bxg5 {[%clk 0:02:03]} 18. Nxg5 {[%clk 0:02:30]}  Qd6 {[%clk 0:01:59]} 19. c3 {[%clk 0:02:25]}  Nxf3+ {[%clk 0:01:57]} 20. Qxf3 {[%clk 0:02:22]}  Ng7 {[%clk 0:01:53]} 21. Qe3 {[%clk 0:02:00]}  Rxf2 {[%clk 0:01:52]} 22. Qxf2 {[%clk 0:02:00]}  Rf8 {[%clk 0:01:29]} 23. Qxa7 {[%clk 0:01:59]}  Qxd5 {[%clk 0:01:23]} 24. Re1 {[%clk 0:01:57]}  Qd2 {[%clk 0:01:14]} 25. Qe3 {[%clk 0:01:56]}  Qxb2 {[%clk 0:00:54]} 26. Qxe5 {[%clk 0:01:55]}  Qf2+ {[%clk 0:00:50]} 27. Kh1 {[%clk 0:01:54]}  Nf5 {[%clk 0:00:32]} 28. Kh2 {[%clk 0:01:34]}  Nh4 {[%clk 0:00:27]} 29. Qd5+ {[%clk 0:01:32]}  Kh8 {[%clk 0:00:27]} 30. Qd4+ {[%clk 0:01:24]}  Qxd4 {[%clk 0:00:26]} 31. cxd4 {[%clk 0:01:25]}  Nf5 {[%clk 0:00:25]} 32. g4 {[%clk 0:01:23]}  Nxd4 {[%clk 0:00:22]} 33. Rxe7 {[%clk 0:01:22]}  Nf3+ {[%clk 0:00:21]} 34. Nxf3 {[%clk 0:01:22]}  Rxf3 {[%clk 0:00:22]} 35. Rxc7 {[%clk 0:01:22]}  Rf2+ {[%clk 0:00:21]} 36. Kg3 {[%clk 0:01:22]}  Rxa2 {[%clk 0:00:21]} 37. Rxb7 {[%clk 0:01:23]}  Ra5 {[%clk 0:00:20]} 38. Kf4 {[%clk 0:01:21]}  Kg8 {[%clk 0:00:20]} 39. Re7 {[%clk 0:01:20]}  Rc5 {[%clk 0:00:20]} 40. h4 {[%clk 0:01:20]}  Rb5 {[%clk 0:00:19]} 41. Re5 {[%clk 0:01:19]}  Rxe5 {[%clk 0:00:18]} 42. Kxe5 {[%clk 0:01:19]}  Kf7 {[%clk 0:00:18]} 43. Kd5 {[%clk 0:01:14]}  Kf6 {[%clk 0:00:11]} 44. Kd6 {[%clk 0:01:10]}  h6 {[%clk 0:00:07]} 45. Kd5 {[%clk 0:00:59]}  h5 {[%clk 0:00:05]} 46. g5+ {[%clk 0:00:40]}  Kf5 {[%clk 0:00:05]} 47. Kd6 {[%clk 0:00:40]}  Kg4 {[%clk 0:00:05]} 48. Ke5 {[%clk 0:00:41]}  Kxh4 {[%clk 0:00:06]} 49. Kf6 {[%clk 0:00:42]}  Kg3 {[%clk 0:00:06]} 50. Kxg6 {[%clk 0:00:42]}  h4 {[%clk 0:00:07]} 51. Kf6 {[%clk 0:00:42]}  h3 {[%clk 0:00:08]} 52. g6 {[%clk 0:00:43]}  h2 {[%clk 0:00:08]} 53. g7 {[%clk 0:00:44]}  h1=Q {[%clk 0:00:09]} 54. g8=Q+ {[%clk 0:00:44]}  Kf2 {[%clk 0:00:09]} 55. Qa2+ {[%clk 0:00:43]}  Kg3 {[%clk 0:00:09]} 56. Qg8+ {[%clk 0:00:41]}  Kf2 {[%clk 0:00:09]} 57. Qa2+ {[%clk 0:00:35]}  Kg3 {[%clk 0:00:09]} 58. Qa3+ {[%clk 0:00:36]}  Qf3+ {[%clk 0:00:08]} 59. Qxf3+ {[%clk 0:00:36]}  Kxf3 {[%clk 0:00:09]} 1/2-1/2


[Site "https://www.chess.com"]

[Event "Titled Tuesday Blitz November 08 Late 2022"]
[White "Dzierzak, Radoslaw"]
[Black "Putnam, Liam"]
[WhiteFideId "1161407"]
[BlackFideId "30938279"]
[WhiteElo "2111"]
[BlackElo "2082"]
[Result "0-1"]
[Round "04"]
[TimeControl "180+1"]
[Date "2022.11.09"]
[WhiteClock "0:00:01"]
[BlackClock "0:00:26"]

1. e4 {[%clk 0:03:00]}  g6 {[%clk 0:03:00]} 2. d4 {[%clk 0:03:00]}  Bg7 {[%clk 0:03:01]} 3. Nf3 {[%clk 0:03:00]}  d6 {[%clk 0:03:00]} 4. Be2 {[%clk 0:03:01]}  Nf6 {[%clk 0:03:00]} 5. Nc3 {[%clk 0:03:00]}  O-O {[%clk 0:03:00]} 6. O-O {[%clk 0:03:01]}  c6 {[%clk 0:03:00]} 7. h3 {[%clk 0:03:01]}  b5 {[%clk 0:02:59]} 8. e5 {[%clk 0:03:00]}  Nfd7 {[%clk 0:02:46]} 9. Bf4 {[%clk 0:03:00]}  dxe5 {[%clk 0:02:38]} 10. dxe5 {[%clk 0:02:56]}  Nc5 {[%clk 0:02:36]} 11. Qxd8 {[%clk 0:02:29]}  Rxd8 {[%clk 0:02:37]} 12. Rad1 {[%clk 0:02:24]}  Re8 {[%clk 0:02:35]} 13. b4 {[%clk 0:02:21]}  Ne6 {[%clk 0:02:26]} 14. Bg3 {[%clk 0:02:08]}  a5 {[%clk 0:02:26]} 15. a3 {[%clk 0:02:00]}  axb4 {[%clk 0:02:22]} 16. axb4 {[%clk 0:02:00]}  Ra3 {[%clk 0:02:19]} 17. Ne4 {[%clk 0:02:00]}  Ra2 {[%clk 0:02:10]} 18. Bd3 {[%clk 0:01:51]}  Na6 {[%clk 0:02:08]} 19. c3 {[%clk 0:01:51]}  Nec7 {[%clk 0:02:04]} 20. Bb1 {[%clk 0:01:42]}  Ra3 {[%clk 0:02:00]} 21. Nd4 {[%clk 0:01:35]}  Bb7 {[%clk 0:01:28]} 22. f4 {[%clk 0:00:56]}  Nd5 {[%clk 0:01:26]} 23. Rd3 {[%clk 0:00:47]}  f5 {[%clk 0:01:21]} 24. exf6 {[%clk 0:00:46]}  Bxf6 {[%clk 0:01:06]} 25. Re1 {[%clk 0:00:20]}  Rd8 {[%clk 0:00:36]} 26. Nxf6+ {[%clk 0:00:18]}  exf6 {[%clk 0:00:37]} 27. Ne2 {[%clk 0:00:06]}  Re8 {[%clk 0:00:30]} 28. Kf2 {[%clk 0:00:06]}  Bc8 {[%clk 0:00:27]} 29. Red1 {[%clk 0:00:05]}  Bf5 {[%clk 0:00:27]} 30. Rxd5 {[%clk 0:00:05]}  cxd5 {[%clk 0:00:26]} 31. Bxf5 {[%clk 0:00:05]}  gxf5 {[%clk 0:00:26]} 32. Rxd5 {[%clk 0:00:05]}  Ra2 {[%clk 0:00:27]} 33. Kf3 {[%clk 0:00:01]}  Raxe2 {[%clk 0:00:26]} 0-1


[Site "https://www.chess.com"]

[Event "Titled Tuesday Blitz November 08 Late 2022"]
[White "Estrada Nieto, Julian"]
[Black "Gritsenko, Nikolai"]
[WhiteFideId "5101018"]
[BlackFideId "14112493"]
[WhiteElo "2221"]
[BlackElo "2389"]
[Result "1/2-1/2"]
[Round "04"]
[TimeControl "180+1"]
[Date "2022.11.09"]
[WhiteClock "0:00:32"]
[BlackClock "0:00:31"]

1. e4 {[%clk 0:02:56]}  d6 {[%clk 0:02:59]} 2. d4 {[%clk 0:02:56]}  Nf6 {[%clk 0:03:00]} 3. Nc3 {[%clk 0:02:56]}  g6 {[%clk 0:03:00]} 4. Nf3 {[%clk 0:02:56]}  Bg7 {[%clk 0:03:01]} 5. Be2 {[%clk 0:02:57]}  O-O {[%clk 0:03:01]} 6. O-O {[%clk 0:02:58]}  e6 {[%clk 0:03:01]} 7. Re1 {[%clk 0:02:51]}  b6 {[%clk 0:03:00]} 8. h3 {[%clk 0:02:46]}  Bb7 {[%clk 0:02:57]} 9. Bf1 {[%clk 0:02:46]}  h6 {[%clk 0:02:47]} 10. a4 {[%clk 0:02:43]}  a6 {[%clk 0:02:46]} 11. Bf4 {[%clk 0:02:30]}  Nbd7 {[%clk 0:02:45]} 12. e5 {[%clk 0:02:28]}  dxe5 {[%clk 0:02:41]} 13. Nxe5 {[%clk 0:02:29]}  Nd5 {[%clk 0:02:30]} 14. Nxd5 {[%clk 0:02:26]}  Bxd5 {[%clk 0:02:29]} 15. Bd3 {[%clk 0:02:17]}  Nxe5 {[%clk 0:02:26]} 16. Bxe5 {[%clk 0:02:17]}  Qg5 {[%clk 0:02:17]} 17. Be4 {[%clk 0:02:08]}  Bxe5 {[%clk 0:02:02]} 18. Bxd5 {[%clk 0:02:07]}  Bh2+ {[%clk 0:02:01]} 19. Kxh2 {[%clk 0:02:06]}  Qxd5 {[%clk 0:02:01]} 20. Qd2 {[%clk 0:01:51]}  Rad8 {[%clk 0:01:55]} 21. Rad1 {[%clk 0:01:51]}  Kg7 {[%clk 0:01:49]} 22. Qf4 {[%clk 0:01:43]}  Qd6 {[%clk 0:01:39]} 23. Qe5+ {[%clk 0:01:43]}  Qxe5+ {[%clk 0:01:38]} 24. dxe5 {[%clk 0:01:43]}  Rfe8 {[%clk 0:01:37]} 25. Kg3 {[%clk 0:01:43]}  Kf8 {[%clk 0:01:36]} 26. Kf3 {[%clk 0:01:41]}  Ke7 {[%clk 0:01:36]} 27. Ke4 {[%clk 0:01:36]}  Rxd1 {[%clk 0:01:31]} 28. Rxd1 {[%clk 0:01:36]}  g5 {[%clk 0:01:22]} 29. Rd3 {[%clk 0:01:24]}  Rg8 {[%clk 0:01:20]} 30. b4 {[%clk 0:01:19]}  Rg6 {[%clk 0:01:13]} 31. a5 {[%clk 0:01:13]}  bxa5 {[%clk 0:01:06]} 32. bxa5 {[%clk 0:01:13]}  Rg8 {[%clk 0:01:05]} 33. Rb3 {[%clk 0:01:10]}  Kd7 {[%clk 0:01:00]} 34. Rb7 {[%clk 0:01:06]}  Ra8 {[%clk 0:00:57]} 35. g4 {[%clk 0:00:53]}  Kc6 {[%clk 0:00:55]} 36. Rb3 {[%clk 0:00:54]}  Rd8 {[%clk 0:00:52]} 37. Rf3 {[%clk 0:00:54]}  Rd5 {[%clk 0:00:42]} 38. Rxf7 {[%clk 0:00:52]}  Rxa5 {[%clk 0:00:42]} 39. Rf6 {[%clk 0:00:52]}  Ra4+ {[%clk 0:00:42]} 40. Ke3 {[%clk 0:00:45]}  Kd5 {[%clk 0:00:41]} 41. Rxh6 {[%clk 0:00:45]}  Re4+ {[%clk 0:00:38]} 42. Kd3 {[%clk 0:00:41]}  Rxe5 {[%clk 0:00:36]} 43. Rh7 {[%clk 0:00:40]}  Kd6 {[%clk 0:00:35]} 44. Rh8 {[%clk 0:00:39]}  Rd5+ {[%clk 0:00:32]} 45. Ke3 {[%clk 0:00:38]}  Re5+ {[%clk 0:00:31]} 46. Kd3 {[%clk 0:00:36]}  Rd5+ {[%clk 0:00:31]} 47. Kc3 {[%clk 0:00:32]}  Rc5+ {[%clk 0:00:31]} 48. Kd3 {[%clk 0:00:32]}  Rd5+ {[%clk 0:00:31]} 1/2-1/2


[Site "https://www.chess.com"]

[Event "Titled Tuesday Blitz November 08 Late 2022"]
[White "Ezat, Mohamed"]
[Black "Yanayt, Eugene"]
[WhiteFideId "10600906"]
[BlackFideId "2020165"]
[WhiteElo "2386"]
[BlackElo "2046"]
[Result "1-0"]
[Round "04"]
[TimeControl "180+1"]
[Date "2022.11.09"]
[WhiteClock "0:00:32"]
[BlackClock "0:00:02"]

1. d4 {[%clk 0:02:49]}  Nf6 {[%clk 0:02:58]} 2. c4 {[%clk 0:02:49]}  g6 {[%clk 0:02:56]} 3. Nc3 {[%clk 0:02:49]}  Bg7 {[%clk 0:02:56]} 4. e4 {[%clk 0:02:50]}  d6 {[%clk 0:02:56]} 5. Be2 {[%clk 0:02:51]}  O-O {[%clk 0:02:55]} 6. Bg5 {[%clk 0:02:51]}  Na6 {[%clk 0:02:45]} 7. Qd2 {[%clk 0:02:50]}  e5 {[%clk 0:02:44]} 8. d5 {[%clk 0:02:50]}  Nc5 {[%clk 0:02:42]} 9. f3 {[%clk 0:02:50]}  Qd7 {[%clk 0:02:37]} 10. b4 {[%clk 0:02:46]}  Na6 {[%clk 0:02:35]} 11. a3 {[%clk 0:02:47]}  Nh5 {[%clk 0:02:34]} 12. g3 {[%clk 0:02:37]}  f5 {[%clk 0:02:31]} 13. exf5 {[%clk 0:02:35]}  gxf5 {[%clk 0:02:30]} 14. f4 {[%clk 0:02:35]}  Nf6 {[%clk 0:02:29]} 15. fxe5 {[%clk 0:02:35]}  dxe5 {[%clk 0:02:28]} 16. c5 {[%clk 0:02:35]}  b6 {[%clk 0:02:18]} 17. Bc4 {[%clk 0:02:32]}  Kh8 {[%clk 0:02:15]} 18. c6 {[%clk 0:02:27]}  Qf7 {[%clk 0:02:06]} 19. Nf3 {[%clk 0:02:26]}  Re8 {[%clk 0:02:04]} 20. O-O {[%clk 0:02:24]}  Qh5 {[%clk 0:02:01]} 21. Rae1 {[%clk 0:02:20]}  e4 {[%clk 0:01:57]} 22. Nd4 {[%clk 0:02:18]}  Ng4 {[%clk 0:01:52]} 23. Bh4 {[%clk 0:02:15]}  Ne5 {[%clk 0:01:34]} 24. Be2 {[%clk 0:02:07]}  Qg6 {[%clk 0:01:31]} 25. Rf4 {[%clk 0:01:51]}  Nd3 {[%clk 0:01:10]} 26. Bxd3 {[%clk 0:01:37]}  Bxd4+ {[%clk 0:01:08]} 27. Kh1 {[%clk 0:01:37]}  Be5 {[%clk 0:01:07]} 28. Bc4 {[%clk 0:01:29]}  Qg7 {[%clk 0:00:58]} 29. Nb5 {[%clk 0:01:21]}  Nb8 {[%clk 0:00:42]} 30. d6 {[%clk 0:01:10]}  Nxc6 {[%clk 0:00:28]} 31. Nxc7 {[%clk 0:01:10]}  Bb7 {[%clk 0:00:26]} 32. Rxf5 {[%clk 0:01:07]}  Bc3 {[%clk 0:00:18]} 33. Nxe8 {[%clk 0:01:00]}  Rxe8 {[%clk 0:00:17]} 34. Qxc3 {[%clk 0:00:55]}  Qxc3 {[%clk 0:00:16]} 35. Bf6+ {[%clk 0:00:55]}  Qxf6 {[%clk 0:00:16]} 36. Rxf6 {[%clk 0:00:55]}  Ne5 {[%clk 0:00:16]} 37. Be2 {[%clk 0:00:46]}  Rd8 {[%clk 0:00:10]} 38. Kg1 {[%clk 0:00:42]}  Nf3+ {[%clk 0:00:08]} 39. Bxf3 {[%clk 0:00:41]}  exf3 {[%clk 0:00:09]} 40. Rf7 {[%clk 0:00:37]}  Bd5 {[%clk 0:00:08]} 41. Rc7 {[%clk 0:00:33]}  Rf8 {[%clk 0:00:08]} 42. Kf2 {[%clk 0:00:33]}  Rd8 {[%clk 0:00:06]} 43. d7 {[%clk 0:00:32]}  Bf7 {[%clk 0:00:02]} 44. Rc8 {[%clk 0:00:32]} 1-0


[Site "https://www.chess.com"]

[Event "Titled Tuesday Blitz November 08 Late 2022"]
[White "Firouzja, Alireza"]
[Black "Mendonca, Mateus Nakajo"]
[WhiteFideId "12573981"]
[BlackFideId "2110954"]
[WhiteElo "2903"]
[BlackElo "2310"]
[Result "1/2-1/2"]
[Round "04"]
[TimeControl "180+1"]
[Date "2022.11.08"]
[WhiteClock "0:00:04"]
[BlackClock "0:00:07"]

1. d4 {[%clk 0:03:00]}  d5 {[%clk 0:02:59]} 2. Bg5 {[%clk 0:02:59]}  Nf6 {[%clk 0:02:57]} 3. e3 {[%clk 0:03:00]}  Bf5 {[%clk 0:02:55]} 4. c4 {[%clk 0:02:59]}  c6 {[%clk 0:02:53]} 5. Nc3 {[%clk 0:02:58]}  e6 {[%clk 0:02:52]} 6. a3 {[%clk 0:02:49]}  Nbd7 {[%clk 0:02:47]} 7. Nf3 {[%clk 0:02:48]}  Bd6 {[%clk 0:02:44]} 8. Be2 {[%clk 0:02:46]}  O-O {[%clk 0:02:43]} 9. Nh4 {[%clk 0:02:46]}  Be4 {[%clk 0:02:36]} 10. cxd5 {[%clk 0:02:04]}  cxd5 {[%clk 0:02:15]} 11. O-O {[%clk 0:02:03]}  h6 {[%clk 0:02:09]} 12. Bxf6 {[%clk 0:02:04]}  Qxf6 {[%clk 0:01:59]} 13. g3 {[%clk 0:01:54]}  Bh7 {[%clk 0:01:59]} 14. Bd3 {[%clk 0:01:54]}  Bxd3 {[%clk 0:01:56]} 15. Qxd3 {[%clk 0:01:55]}  Rfc8 {[%clk 0:01:50]} 16. Kg2 {[%clk 0:01:55]}  a6 {[%clk 0:01:48]} 17. Nf3 {[%clk 0:01:53]}  Rc6 {[%clk 0:01:41]} 18. Rfe1 {[%clk 0:01:43]}  Rac8 {[%clk 0:01:33]} 19. e4 {[%clk 0:01:43]}  dxe4 {[%clk 0:01:33]} 20. Rxe4 {[%clk 0:01:43]}  Qf5 {[%clk 0:01:23]} 21. Nh4 {[%clk 0:01:31]}  Qh5 {[%clk 0:01:13]} 22. Rae1 {[%clk 0:01:16]}  Nf6 {[%clk 0:01:12]} 23. Re5 {[%clk 0:01:16]}  Bxe5 {[%clk 0:01:07]} 24. Rxe5 {[%clk 0:01:17]}  g5 {[%clk 0:00:56]} 25. h3 {[%clk 0:00:34]}  Nd7 {[%clk 0:00:47]} 26. Ne4 {[%clk 0:00:35]}  Rc1 {[%clk 0:00:34]} 27. Nf3 {[%clk 0:00:30]}  Rh1 {[%clk 0:00:22]} 28. Nexg5 {[%clk 0:00:18]}  Nxe5 {[%clk 0:00:19]} 29. Qh7+ {[%clk 0:00:15]}  Kf8 {[%clk 0:00:19]} 30. dxe5 {[%clk 0:00:15]}  Rcc1 {[%clk 0:00:16]} 31. g4 {[%clk 0:00:08]}  Qg6 {[%clk 0:00:13]} 32. Qxg6 {[%clk 0:00:03]}  fxg6 {[%clk 0:00:12]} 33. Nxe6+ {[%clk 0:00:04]}  Kf7 {[%clk 0:00:12]} 34. Nd8+ {[%clk 0:00:03]}  Ke8 {[%clk 0:00:11]} 35. Nxb7 {[%clk 0:00:04]}  Rhd1 {[%clk 0:00:11]} 36. b4 {[%clk 0:00:03]}  Rc3 {[%clk 0:00:09]} 37. a4 {[%clk 0:00:02]}  Rdd3 {[%clk 0:00:08]} 38. Nh4 {[%clk 0:00:02]}  Rc4 {[%clk 0:00:07]} 39. Nxg6 {[%clk 0:00:01]}  Rxb4 {[%clk 0:00:07]} 40. Nc5 {[%clk 0:00:02]}  Rd2 {[%clk 0:00:06]} 41. Nxa6 {[%clk 0:00:01]}  Rbb2 {[%clk 0:00:05]} 42. Nc5 {[%clk 0:00:01]}  Rxf2+ {[%clk 0:00:05]} 43. Kg3 {[%clk 0:00:02]}  Rfc2 {[%clk 0:00:05]} 44. Ne4 {[%clk 0:00:01]}  Rb4 {[%clk 0:00:03]} 45. Nd6+ {[%clk 0:00:01]}  Kd7 {[%clk 0:00:03]} 46. Nf5 {[%clk 0:00:02]}  Rc3+ {[%clk 0:00:04]} 47. Kh4 {[%clk 0:00:02]}  Rxa4 {[%clk 0:00:05]} 48. Nxh6 {[%clk 0:00:02]}  Raa3 {[%clk 0:00:05]} 49. Nf4 {[%clk 0:00:02]}  Rf3 {[%clk 0:00:06]} 50. e6+ {[%clk 0:00:02]}  Ke7 {[%clk 0:00:06]} 51. Nf5+ {[%clk 0:00:03]}  Kf6 {[%clk 0:00:07]} 52. e7 {[%clk 0:00:03]}  Ra8 {[%clk 0:00:05]} 53. Nd5+ {[%clk 0:00:03]}  Kf7 {[%clk 0:00:04]} 54. Kg5 {[%clk 0:00:03]}  Rg8+ {[%clk 0:00:05]} 55. Kh4 {[%clk 0:00:02]}  Rh8+ {[%clk 0:00:05]} 56. Kg5 {[%clk 0:00:03]}  Rg8+ {[%clk 0:00:06]} 57. Kh4 {[%clk 0:00:03]}  Rh8+ {[%clk 0:00:06]} 58. Kg5 {[%clk 0:00:04]}  Rg8+ {[%clk 0:00:07]} 1/2-1/2


[Site "https://www.chess.com"]

[Event "Titled Tuesday Blitz November 08 Late 2022"]
[White "Goltsev, Dmitry"]
[Black "Manelyuk, Daniil"]
[WhiteFideId "24176710"]
[BlackFideId "44173920"]
[WhiteElo "2289"]
[BlackElo "2209"]
[Result "1-0"]
[Round "04"]
[TimeControl "180+1"]
[Date "2022.11.09"]
[WhiteClock "0:00:05"]
[BlackClock "0:00:03"]

1. e4 {[%clk 0:02:58]}  e6 {[%clk 0:02:57]} 2. d4 {[%clk 0:02:58]}  d5 {[%clk 0:02:58]} 3. exd5 {[%clk 0:02:59]}  exd5 {[%clk 0:02:58]} 4. Nf3 {[%clk 0:03:00]}  c6 {[%clk 0:02:58]} 5. Bd3 {[%clk 0:03:00]}  Bd6 {[%clk 0:02:59]} 6. O-O {[%clk 0:03:01]}  Ne7 {[%clk 0:02:59]} 7. c4 {[%clk 0:03:02]}  Nd7 {[%clk 0:02:58]} 8. Re1 {[%clk 0:03:00]}  O-O {[%clk 0:02:58]} 9. Nc3 {[%clk 0:03:00]}  dxc4 {[%clk 0:02:49]} 10. Bxc4 {[%clk 0:03:01]}  Nb6 {[%clk 0:02:50]} 11. Bb3 {[%clk 0:02:59]}  Bg4 {[%clk 0:02:42]} 12. Bg5 {[%clk 0:02:58]}  Qc7 {[%clk 0:02:41]} 13. Rc1 {[%clk 0:02:56]}  Qd7 {[%clk 0:01:42]} 14. Ne4 {[%clk 0:02:50]}  Nf5 {[%clk 0:01:22]} 15. h3 {[%clk 0:02:47]}  Bxf3 {[%clk 0:01:22]} 16. Qxf3 {[%clk 0:02:48]}  Nxd4 {[%clk 0:01:22]} 17. Qh5 {[%clk 0:02:44]}  Bb4 {[%clk 0:01:00]} 18. Red1 {[%clk 0:02:37]}  Rae8 {[%clk 0:00:59]} 19. Bc2 {[%clk 0:02:04]}  f5 {[%clk 0:00:39]} 20. Ng3 {[%clk 0:01:53]}  g6 {[%clk 0:00:36]} 21. Qh4 {[%clk 0:01:51]}  f4 {[%clk 0:00:25]} 22. Bxf4 {[%clk 0:01:45]}  Be7 {[%clk 0:00:19]} 23. Bg5 {[%clk 0:01:21]}  Bxg5 {[%clk 0:00:19]} 24. Qxg5 {[%clk 0:01:22]}  Qf7 {[%clk 0:00:19]} 25. Rd2 {[%clk 0:01:17]}  Nxc2 {[%clk 0:00:19]} 26. Rcxc2 {[%clk 0:01:13]}  Qxa2 {[%clk 0:00:14]} 27. Kh2 {[%clk 0:01:12]}  Qf7 {[%clk 0:00:13]} 28. Qa5 {[%clk 0:01:11]}  Qc7 {[%clk 0:00:10]} 29. Re2 {[%clk 0:01:07]}  Rd8 {[%clk 0:00:06]} 30. Qg5 {[%clk 0:01:01]}  Rd5 {[%clk 0:00:05]} 31. Qh6 {[%clk 0:00:58]}  Rd7 {[%clk 0:00:05]} 32. Kh1 {[%clk 0:00:57]}  Rdf7 {[%clk 0:00:05]} 33. Ne4 {[%clk 0:00:56]}  Nd5 {[%clk 0:00:05]} 34. Red2 {[%clk 0:00:55]}  Re7 {[%clk 0:00:05]} 35. f3 {[%clk 0:00:52]}  Rxe4 {[%clk 0:00:05]} 36. Rc1 {[%clk 0:00:47]}  Re7 {[%clk 0:00:04]} 37. Rxd5 {[%clk 0:00:46]}  Ref7 {[%clk 0:00:05]} 38. Rd2 {[%clk 0:00:44]}  Re8 {[%clk 0:00:05]} 39. Rcd1 {[%clk 0:00:44]}  Rfe7 {[%clk 0:00:05]} 40. Qh4 {[%clk 0:00:43]}  Qe5 {[%clk 0:00:03]} 41. Qc4+ {[%clk 0:00:41]}  Qe6 {[%clk 0:00:02]} 42. Qc5 {[%clk 0:00:40]}  Qf6 {[%clk 0:00:03]} 43. Rd8 {[%clk 0:00:27]}  b6 {[%clk 0:00:03]} 44. Qc4+ {[%clk 0:00:24]}  Qf7 {[%clk 0:00:03]} 45. Qc3 {[%clk 0:00:17]}  Rxd8 {[%clk 0:00:02]} 46. Rxd8+ {[%clk 0:00:18]}  Re8 {[%clk 0:00:03]} 47. Rd6 {[%clk 0:00:16]}  c5 {[%clk 0:00:02]} 48. Qd2 {[%clk 0:00:14]}  Qe7 {[%clk 0:00:03]} 49. Kh2 {[%clk 0:00:12]}  Qe1 {[%clk 0:00:04]} 50. Qd5+ {[%clk 0:00:12]}  Kf8 {[%clk 0:00:04]} 51. Rf6+ {[%clk 0:00:10]}  Kg7 {[%clk 0:00:04]} 52. Rf7+ {[%clk 0:00:11]}  Kh8 {[%clk 0:00:03]} 53. f4 {[%clk 0:00:10]}  Qe6 {[%clk 0:00:02]} 54. Qb7 {[%clk 0:00:06]}  Kg8 {[%clk 0:00:02]} 55. Rxh7 {[%clk 0:00:06]}  Qf6 {[%clk 0:00:03]} 56. Qc7 {[%clk 0:00:04]}  Rf8 {[%clk 0:00:02]} 57. Kg3 {[%clk 0:00:04]}  Re8 {[%clk 0:00:02]} 58. Rd7 {[%clk 0:00:04]}  Re3+ {[%clk 0:00:02]} 59. Kh2 {[%clk 0:00:04]}  Re8 {[%clk 0:00:02]} 60. Rd5 {[%clk 0:00:04]}  a5 {[%clk 0:00:02]} 61. Kg3 {[%clk 0:00:03]}  Re3+ {[%clk 0:00:02]} 62. Kh2 {[%clk 0:00:04]}  Re8 {[%clk 0:00:03]} 63. Qd6 {[%clk 0:00:03]}  Qxb2 {[%clk 0:00:02]} 64. Qxg6+ {[%clk 0:00:03]}  Kf8 {[%clk 0:00:03]} 65. Rf5+ {[%clk 0:00:03]}  Ke7 {[%clk 0:00:03]} 66. Rf7+ {[%clk 0:00:03]}  Kd8 {[%clk 0:00:02]} 67. Qd6+ {[%clk 0:00:04]}  Kc8 {[%clk 0:00:03]} 68. Qc7# {[%clk 0:00:05]} 1-0


[Site "https://www.chess.com"]